fUST/lending_fUST_20250212
["ID","MTS","AMOUNT","RATE_DAILY","PERIOD"]
[352752034,1739292347463,-1327.05,0.00010958,2]
[352752035,1739292347484,-500.0,0.00010958,2]
[352752036,1739292347507,-500.0,0.00010958,2]
[352752037,1739292347528,-561.86573152,0.00010958,2]
[352752038,1739292347550,-500.0,0.00010958,2]
[352752039,1739292347571,-500.0,0.00010958,2]
[352752040,1739292347593,-756.61,0.00010958,2]
[352752041,1739292347615,-1772.21,0.00010958,2]
[352752042,1739292347636,-500.0,0.00010958,2]
[352752043,1739292347658,-500.0,0.00010958,2]
[352752044,1739292347678,-428.124,0.00010969,2]
[352752045,1739292347698,-396.0,0.00010969,2]
[352752046,1739292347718,-150.0,0.00010969,2]
[352752047,1739292347742,-93396.80276813,0.00010999,5]
[352752048,1739292358167,-500.0,0.00010958,2]
[352752049,1739292358188,-500.0,0.00010958,2]
[352752050,1739292358210,-764.39,0.00010958,2]
[352752051,1739292358232,-3065.04,0.00010958,2]
[352752052,1739292358254,-500.0,0.00010958,2]
[352752053,1739292358275,-831.69,0.00010958,2]
[352752054,1739292358296,-830.92,0.00010958,2]
[352752055,1739292358317,-513.73,0.00010958,2]
[352752056,1739292358336,-4728.08547057,0.00010999,5]
[352752057,1739292358358,-140489.79358943,0.00011,5]
[352752058,1739292397081,-2500.0,0.00010102,2]
[352752059,1739292397103,-1072.5744481,0.000109,2]
[352752060,1739292397127,-500.0,0.00010958,2]
[352752061,1739292397150,-500.0,0.00010958,2]
[352752062,1739292397172,-500.0,0.00010958,2]
[352752063,1739292397195,-1534.07,0.00010958,2]
[352752064,1739292397218,-1004.15,0.00010958,2]
[352752065,1739292397239,-355.28,0.00010958,2]
[352752066,1739292397261,-500.0,0.00010958,2]
[352752067,1739292397285,-500.0,0.00010958,2]
[352752068,1739292397308,-172.0008762,0.00010999,2]
[352752069,1739292397330,-300.0,0.00010999,2]
[352752070,1739292397353,-5099.6600007,0.00011,5]
[352752071,1739292425098,-300.0,0.00010078,2]
[352752072,1739292425121,-24900.0,0.00010079,2]
[352752073,1739292425143,-500.0,0.00010958,2]
[352752074,1739292425166,-500.0,0.00010958,2]
[352752075,1739292425189,-500.0,0.00010958,2]
[352752076,1739292425212,-1385.44,0.00010958,2]
[352752077,1739292425235,-500.0,0.00010958,2]
[352752078,1739292425258,-500.0,0.00010958,2]
[352752079,1739292425280,-1268.55,0.00010958,2]
[352752080,1739292425306,-862.2,0.00010958,2]
[352752081,1739292425328,-2472.44,0.00010958,2]
[352752082,1739292425351,-90253.164176,0.00011,5]
[352752083,1739292429135,-7219.17368837,0.00011,5]
[352752084,1739292429160,-13802.11661863,0.00011,5]
[352752085,1739292437112,-500.0,0.00010958,2]
[352752086,1739292437134,-500.0,0.00010958,2]
[352752087,1739292437155,-66563.96335579,0.00010977,2]
[352752088,1739292437176,-35260.32750072,0.00011,5]
[352752089,1739292437197,-6848.42,0.00011,14]
[352752090,1739292437220,-10000.0,0.00011,2]
[352752091,1739292437246,-650083.0940149,0.00011,2]
[352752092,1739292440091,-383249.976165,0.00011,2]
[352752093,1739292444143,-76058.830611,0.00011,2]
[352752094,1739292447099,-500.0,0.00010958,2]
[352752095,1739292447130,-135092.802334,0.00011,2]
[352752130,1739292632699,-2863.42255188,0.000109,2]
[352752131,1739292632709,-815.15767931,0.00010957,3]
[352752132,1739292632718,-300.0,0.00010957,2]
[352752133,1739292632728,-500.0,0.00010958,2]
[352752134,1739292632738,-500.0,0.00010958,2]
[352752135,1739292632747,-500.0,0.00010958,2]
[352752136,1739292632756,-1240.89,0.00010958,2]
[352752138,1739292632765,-5335.57,0.00010958,2]
[352752139,1739292632774,-500.0,0.00010958,2]
[352752140,1739292632783,-1636.16,0.00010958,2]
[352752141,1739292632793,-500.0,0.00010958,2]
[352752142,1739292632802,-527.77,0.00010958,2]
[352752143,1739292632811,-500.0,0.00010958,2]
[352752144,1739292632820,-2299.03,0.00010958,2]
[352752145,1739292632829,-856.13,0.00010958,2]
[352752146,1739292632838,-500.0,0.00010958,2]
[352752147,1739292632848,-961.11845544,0.00010958,2]
[352752148,1739292632861,-13472.41916209,0.00010958,2]
[352752176,1739292638677,-3324.61238247,0.00010958,2]
[352752178,1739292638687,-652.38,0.00010958,2]
[352752180,1739292638696,-500.0,0.00010958,2]
[352752182,1739292638706,-975.36,0.00010958,2]
[352752184,1739292638715,-693.75,0.00010958,2]
[352752186,1739292638725,-627.33,0.00010958,2]
[352752188,1739292638736,-970.7,0.00010958,2]
[352752190,1739292638745,-500.0,0.00010958,2]
[352752192,1739292638754,-8584.97,0.00010958,2]
[352752194,1739292638763,-500.0,0.00010958,2]
[352752196,1739292638773,-500.0,0.00010958,2]
[352752198,1739292638782,-500.0,0.00010958,2]
[352752200,1739292638791,-500.0,0.00010958,2]
[352752202,1739292638801,-500.0,0.00010958,2]
[352752204,1739292638810,-500.0,0.00010958,2]
[352752206,1739292638819,-1167.89,0.00010958,2]
[352752208,1739292638829,-644.00612109,0.00010958,2]
[352752210,1739292638838,-500.0,0.00010958,2]
[352752212,1739292638848,-500.0,0.00010958,2]
[352752214,1739292638861,-500.0,0.00010958,2]
[352752217,1739292638874,-1271.76,0.00010958,2]
[352752219,1739292638884,-732.54,0.00010958,2]
[352752221,1739292638893,-2937.33,0.00010958,2]
[352752223,1739292638903,-500.0,0.00010958,2]
[352752225,1739292638912,-500.0,0.00010958,2]
[352752227,1739292638921,-384.33350443,0.00010958,2]
[352752229,1739292638930,-725.09,0.00010958,2]
[352752231,1739292638940,-500.0,0.00010958,2]
[352752233,1739292638949,-797.04,0.00010958,2]
[352752235,1739292638960,-1470.15,0.00010958,2]
[352752237,1739292638969,-500.0,0.00010958,2]
[352752239,1739292638978,-500.0,0.00010958,2]
[352752241,1739292638989,-500.0,0.00010958,2]
[352752243,1739292638998,-500.0,0.00010958,2]
[352752244,1739292639008,-500.0,0.00010958,2]
[352752246,1739292639018,-500.0,0.00010958,2]
[352752248,1739292639027,-1698.37,0.00010999,2]
[352752251,1739292639038,-796.3,0.00010999,2]
[352752253,1739292639047,-500.0,0.00010999,2]
[352752255,1739292639057,-500.0,0.00010999,2]
[352752257,1739292639066,-46074.5107555,0.00011,5]
[352752259,1739292639079,-951.8999999,0.00011,5]
[352752262,1739292639096,-74504.48497185,0.00011,5]
[352752264,1739292639106,-24531.22205967,0.00011,5]
[352752266,1739292639115,-12098.02964611,0.00011,2]
[352752268,1739292639127,-161800.51161507,0.00011,2]
[352752302,1739292639445,-464.96799901,0.00011,2]
[352752405,1739292640460,-63856.25440942,0.00011,2]
[352752406,1739292640483,-8450.981179,0.00011,2]
[352752409,1739292640774,-13771.310464,0.00011,2]
[352752739,1739292643612,-1072.57444809,0.000109,2]
[352752741,1739292643622,-1215.7,0.00010958,2]
[352752743,1739292643631,-332103.14060002,0.00011,2]
[352752753,1739292643718,-2207.17466836,0.00011,2]
[352752755,1739292643731,-4109.06306748,0.00011,2]
[352752770,1739292643862,-16969.29434,0.00011,2]
[352752785,1739292643987,-1615.303925,0.00011,2]
[352753054,1739292646634,-2480.4,0.00011,2]
[352753058,1739292646657,-42583.330685,0.00011,2]
[352753060,1739292646673,-1097.8663502,0.00011,2]
[352753066,1739292646720,-2335.698923,0.00011,2]
[352753074,1739292646800,-15065.866926,0.00011,2]
[352758031,1739293748686,1000.0,0.00016,120]
[352758100,1739293832926,-300.0,9.705e-05,2]
[352758102,1739293832936,-24900.0,9.706e-05,2]
[352758104,1739293832947,-1000.0,0.0001,10]
[352758106,1739293832957,-5303.99932004,0.00010002,2]
[352758108,1739293832966,-500.0,0.00010002,2]
[352758110,1739293832976,-500.0,0.00010002,2]
[352758112,1739293832986,-500.0,0.00010002,2]
[352758114,1739293832996,-500.0,0.00010002,2]
[352758116,1739293833005,-500.0,0.00010002,2]
[352758118,1739293833015,-500.0,0.00010002,2]
[352758120,1739293833024,-219.94198831,0.00010002,2]
[352758121,1739293833033,-12977.5710584,0.00010018,2]
[352758124,1739293833043,-2400.0,0.00010102,2]
[352758126,1739293833053,-154.718,0.0001067,2]
[352758128,1739293833063,-420.0,0.00010676,2]
[352758131,1739293833074,-400.0,0.00010685,2]
[352758132,1739293833083,-480.61846369,0.00010858,2]
[352758134,1739293833093,-480.61846365,0.00010869,2]
[352758137,1739293833104,-480.61846365,0.00010879,2]
[352758138,1739293833114,-480.61846365,0.0001089,2]
[352758141,1739293833127,-544.561,0.000109,2]
[352758142,1739293833136,-578.0,0.000109,3]
[352758144,1739293833147,-154.6189857,0.000109,2]
[352758147,1739293833158,-215.860309,0.000109,2]
[352758149,1739293833168,-154.6189857,0.000109,2]
[352758151,1739293833178,-215.860309,0.000109,2]
[352758153,1739293833188,-215.860309,0.000109,2]
[352758155,1739293833200,-154.6189857,0.000109,2]
[352758157,1739293833209,-2577.08029671,0.000109,2]
[352758158,1739293833220,-480.61846365,0.000109,2]
[352758161,1739293833234,-500.0,0.00010957,2]
[352758162,1739293833244,-500.0,0.00010957,2]
[352758164,1739293833253,-500.0,0.00010957,2]
[352758166,1739293833262,-500.0,0.00010957,2]
[352758168,1739293833272,-500.0,0.00010957,2]
[352758170,1739293833283,-500.0,0.00010957,2]
[352758172,1739293833293,-500.0,0.00010957,2]
[352758175,1739293833306,-500.0,0.00010957,2]
[352758176,1739293833317,-550.0,0.00010957,2]
[352758178,1739293833327,-500.0,0.00010957,2]
[352758181,1739293833338,-500.0,0.00010957,2]
[352758183,1739293833348,-500.0,0.00010957,2]
[352758185,1739293833358,-500.0,0.00010957,2]
[352758187,1739293833369,-500.0,0.00010957,2]
[352758189,1739293833379,-500.0,0.00010957,2]
[352758190,1739293833389,-500.0,0.00010957,2]
[352758193,1739293833400,-500.0,0.00010957,2]
[352758195,1739293833410,-418.29758192,0.00010957,2]
[352758196,1739293833419,-500.0,0.00010957,2]
[352758198,1739293833429,-500.0,0.00010957,2]
[352758200,1739293833439,-500.0,0.00010957,2]
[352758202,1739293833451,-500.0,0.00010957,2]
[352758204,1739293833461,-500.0,0.00010957,2]
[352758206,1739293833472,-500.0,0.00010957,2]
[352758208,1739293833481,-500.0,0.00010957,2]
[352758210,1739293833491,-500.0,0.00010957,2]
[352758212,1739293833501,-500.0,0.00010957,2]
[352758214,1739293833510,-500.0,0.00010957,2]
[352758216,1739293833520,-500.0,0.00010957,2]
[352758218,1739293833530,-500.0,0.00010957,2]
[352758220,1739293833541,-500.0,0.00010957,2]
[352758237,1739293833712,-500.0,0.00010957,2]
[352758239,1739293833722,-500.0,0.00010957,2]
[352758241,1739293833733,-500.0,0.00010957,2]
[352758244,1739293833742,-500.0,0.00010957,2]
[352758245,1739293833752,-500.0,0.00010957,2]
[352758247,1739293833762,-500.0,0.00010957,2]
[352758250,1739293833772,-500.0,0.00010957,2]
[352758252,1739293833782,-500.0,0.00010957,2]
[352758254,1739293833792,-354.50051364,0.00010957,2]
[352758256,1739293833802,-500.0,0.00010958,2]
[352758258,1739293833812,-500.0,0.00010958,2]
[352758260,1739293833822,-500.0,0.00010958,2]
[352758261,1739293833832,-500.0,0.00010958,2]
[352758263,1739293833843,-500.0,0.00010958,2]
[352758265,1739293833853,-500.0,0.00010958,2]
[352758268,1739293833864,-630.69,0.00010958,2]
[352758270,1739293833874,-560.26,0.00010958,2]
[352758271,1739293833884,-500.0,0.00010958,2]
[352758274,1739293833894,-500.0,0.00010958,2]
[352758276,1739293833904,-500.0,0.00010958,2]
[352758277,1739293833914,-500.0,0.00010958,2]
[352758279,1739293833923,-540.82,0.00010958,2]
[352758281,1739293833933,-500.0,0.00010958,2]
[352758284,1739293833943,-500.0,0.00010958,2]
[352758286,1739293833954,-500.0,0.00010958,2]
[352758288,1739293833964,-500.0,0.00010958,2]
[352758290,1739293833975,-500.0,0.00010958,2]
[352758292,1739293833985,-500.0,0.00010958,2]
[352758293,1739293833995,-500.0,0.00010958,2]
[352758295,1739293834005,-500.0,0.00010958,2]
[352758297,1739293834014,-500.0,0.00010958,2]
[352758299,1739293834024,-500.0,0.00010958,2]
[352758301,1739293834034,-500.0,0.00010958,2]
[352758304,1739293834044,-500.0,0.00010958,2]
[352758305,1739293834054,-1327.71,0.00010958,2]
[352758307,1739293834063,-500.0,0.00010958,2]
[352758309,1739293834074,-2369.42,0.00010958,2]
[352758311,1739293834083,-505.78,0.00010958,2]
[352758314,1739293834094,-500.0,0.00010958,2]
[352758315,1739293834104,-500.0,0.00010958,2]
[352758317,1739293834114,-596.4190973,0.00010958,2]
[352758319,1739293834124,-826.27,0.00010958,2]
[352758321,1739293834134,-500.0,0.00010958,2]
[352758323,1739293834144,-500.0,0.00010958,2]
[352758326,1739293834155,-1189.19,0.00010958,2]
[352758328,1739293834165,-500.0,0.00010958,2]
[352758330,1739293834175,-500.0,0.00010958,2]
[352758331,1739293834185,-500.0,0.00010958,2]
[352758334,1739293834196,-1567.99,0.00010958,2]
[352758335,1739293834206,-500.0,0.00010958,2]
[352758337,1739293834217,-8227.26,0.00010958,2]
[352758340,1739293834231,-17018.23,0.00010958,2]
[352758342,1739293834241,-820.46,0.00010958,2]
[352758344,1739293834251,-500.0,0.00010958,2]
[352758346,1739293834261,-2203.24,0.00010958,2]
[352758348,1739293834271,-500.0,0.00010958,2]
[352758350,1739293834280,-625.2,0.00010958,2]
[352758351,1739293834291,-934.72,0.00010958,2]
[352758352,1739293834303,-1119.23,0.00010958,2]
[352758353,1739293834314,-7098.39,0.00010958,2]
[352758354,1739293834325,-7098.39,0.00010958,2]
[352758355,1739293834336,-7098.39,0.00010958,2]
[352758357,1739293834347,-7098.39,0.00010958,2]
[352758359,1739293834357,-7098.39,0.00010958,2]
[352758361,1739293834368,-7098.39,0.00010958,2]
[352758363,1739293834378,-601.19,0.00010958,2]
[352758365,1739293834388,-664.84,0.00010958,2]
[352758367,1739293834399,-500.0,0.00010958,2]
[352758369,1739293834409,-500.0,0.00010958,2]
[352758371,1739293834420,-500.0,0.00010958,2]
[352758373,1739293834431,-986.14,0.00010958,2]
[352758375,1739293834441,-500.0,0.00010958,2]
[352758377,1739293834454,-500.0,0.00010958,2]
[352758379,1739293834465,-500.0,0.00010958,2]
[352758381,1739293834475,-500.0,0.00010958,2]
[352758383,1739293834486,-500.0,0.00010958,2]
[352758385,1739293834497,-500.0,0.00010958,2]
[352758387,1739293834507,-206.79620704,0.00010958,2]
[352758389,1739293834518,-500.0,0.00010958,2]
[352758391,1739293834529,-500.0,0.00010958,2]
[352758393,1739293834538,-500.0,0.00010958,2]
[352758395,1739293834549,-1218.77,0.00010958,2]
[352758397,1739293834559,-500.0,0.00010958,2]
[352758399,1739293834570,-500.0,0.00010958,2]
[352758401,1739293834580,-500.0,0.00010958,2]
[352758403,1739293834591,-1627.6,0.00010958,2]
[352758405,1739293834600,-500.0,0.00010958,2]
[352758407,1739293834610,-500.0,0.00010958,2]
[352758409,1739293834620,-694.87,0.00010958,2]
[352758411,1739293834631,-500.0,0.00010958,2]
[352758414,1739293834642,-500.0,0.00010958,2]
[352758415,1739293834653,-500.0,0.00010958,2]
[352758418,1739293834664,-2814.94,0.00010958,2]
[352758420,1739293834675,-763.12,0.00010958,2]
[352758422,1739293834685,-763.83,0.00010958,2]
[352758423,1739293834695,-500.0,0.00010958,2]
[352758426,1739293834709,-500.0,0.00010958,2]
[352758427,1739293834719,-1165.04,0.00010958,2]
[352758429,1739293834728,-500.0,0.00010958,2]
[352758431,1739293834738,-500.0,0.00010958,2]
[352758433,1739293834748,-1408.9,0.00010958,2]
[352758435,1739293834758,-656.93,0.00010958,2]
[352758437,1739293834768,-962.31,0.00010958,2]
[352758439,1739293834777,-5113.25,0.00010958,2]
[352758441,1739293834787,-500.0,0.00010958,2]
[352758444,1739293834798,-500.0,0.00010958,2]
[352758446,1739293834807,-500.0,0.00010958,2]
[352758447,1739293834816,-605.78,0.00010958,2]
[352758450,1739293834827,-500.63540994,0.00010973,2]
[352758452,1739293834836,-500.0,0.00010973,2]
[352758454,1739293834845,-500.0,0.00010973,2]
[352758455,1739293834855,-500.29291405,0.00010973,2]
[352758458,1739293834865,-500.0,0.00010973,2]
[352758460,1739293834875,-500.0,0.00010973,2]
[352758461,1739293834884,-500.0,0.00010973,2]
[352758463,1739293834894,-500.0,0.00010973,2]
[352758465,1739293834903,-270.11358011,0.00010973,2]
[352758467,1739293834913,-500.0,0.00010973,2]
[352758470,1739293834923,-540.25734142,0.00010973,2]
[352758472,1739293834933,-152.14393087,0.00010973,2]
[352758474,1739293834942,-542.89543832,0.00010973,2]
[352758476,1739293834956,-500.0,0.00010973,2]
[352758478,1739293834966,-500.0,0.00010973,2]
[352758480,1739293834975,-218.24087463,0.00010973,2]
[352758482,1739293834988,-500.0,0.00010973,2]
[352758484,1739293834998,-500.40190458,0.00010973,2]
[352758486,1739293835007,-500.0,0.00010973,2]
[352758488,1739293835017,-500.0,0.00010973,2]
[352758490,1739293835027,-471.30569283,0.00010973,2]
[352758492,1739293835037,-253.4705986,0.00010973,2]
[352758494,1739293835047,-7098.39,0.00010995,2]
[352758496,1739293835056,-7098.39,0.00010997,2]
[352758498,1739293835066,-7098.39,0.00010998,2]
[352758500,1739293835076,-7098.39,0.00010998,2]
[352758502,1739293835085,-7098.39,0.00010998,2]
[352758504,1739293835095,-7098.39,0.00010998,2]
[352758506,1739293835104,-7098.39,0.00010998,2]
[352758507,1739293835114,-7098.39,0.00010998,2]
[352758509,1739293835123,-7098.39,0.00010998,2]
[352758511,1739293835132,-7098.39,0.00010999,2]
[352758513,1739293835142,-7098.39,0.00010999,2]
[352758516,1739293835152,-7098.39,0.00010999,2]
[352758517,1739293835162,-7098.39,0.00010999,2]
[352758520,1739293835172,-7098.39,0.00010999,2]
[352758522,1739293835182,-7098.39,0.00010999,2]
[352758524,1739293835191,-7098.39,0.00010999,2]
[352758526,1739293835205,-7098.39,0.00010999,2]
[352758528,1739293835216,-7098.59423196,0.00010999,2]
[352758530,1739293835228,-166.66767079,0.00010999,2]
[352758532,1739293835237,-420.0,0.00010999,2]
[352758533,1739293835247,-500.0,0.00010999,2]
[352758536,1739293835257,-264.53729764,0.00010999,2]
[352758538,1739293835268,-27510.84923224,0.00011,5]
[352758540,1739293835279,-60765.44786363,0.00011,5]
[352758542,1739293835289,-692376.57603287,0.00011,2]
[352758544,1739293835304,-4507.94031443,0.00011,2]
[352758547,1739293835316,-575.93992167,0.00011,2]
[352758549,1739293835328,-4781.26527383,0.00011,2]
[352758551,1739293835340,-55198.21554376,0.00011,2]
[352758553,1739293835351,-1051.97447401,0.00011,2]
[352759126,1739293841039,-506.06236576,0.00010958,2]
[352759128,1739293841051,-1764.63763424,0.00010958,2]
[352759130,1739293841061,-500.0,0.00010958,2]
[352759132,1739293841070,-27510.84923224,0.00011,5]
[352759134,1739293841080,-109642.60648926,0.00011,2]
[352759136,1739293841093,-36649.88637579,0.00011,2]
[352759139,1739293841105,-4486.61331585,0.00011,2]
[352759175,1739293841463,-1500.0,0.00011,2]
[352759177,1739293841475,-674.62973335,0.00011,2]
[352759179,1739293841487,-4270.02465634,0.00011,2]
[352759183,1739293841515,-596.59801914,0.00011,2]
[352759189,1739293841569,-3987.57932694,0.00011,2]
[352759196,1739293841624,-4192.45137982,0.00011,2]
[352759224,1739293841888,-4793.17145919,0.00011,2]
[352759436,1739293843793,-500.0,0.00010958,2]
[352759439,1739293843803,-6960.32795395,0.00011,2]
[352759442,1739293843815,-398.01167164,0.00011,2]
[352759449,1739293843849,-285.41699059,0.00011,2]
[352759455,1739293843862,-12318.99999619,0.00011,2]
[352759855,1739293847148,-500.0,0.00010958,2]
[352759859,1739293847159,-1689.16785951,0.00011,2]
[352759863,1739293847172,-9785.2,0.00011,2]
[352759869,1739293847206,-51268.22146933,0.00011,2]
[352760309,1739295032615,-300.0,9.874e-05,2]
[352760311,1739295032625,-90.52183207,9.875e-05,2]
[352760314,1739295032643,-10424.45321087,9.875e-05,2]
[352760316,1739295032655,-7646.20201634,9.875e-05,2]
[352760317,1739295032668,-6738.82294072,9.875e-05,2]
[352760318,1739295032678,-2300.0,0.00010102,2]
[352760319,1739295032687,-154.675,0.0001045,2]
[352760320,1739295032697,-400.0,0.00010685,2]
[352760321,1739295032709,-748.14743853,0.00010783,2]
[352760322,1739295032718,-1516.92992251,0.000108,2]
[352760323,1739295032730,-4209.76447227,0.000108,2]
[352760338,1739295037718,-508.15906286,0.000108,2]
[352760339,1739295037728,-177.83672863,0.00010858,2]
[352760341,1739295037739,-420.0,0.00010861,2]
[352760343,1739295037750,-177.83672863,0.00010879,2]
[352760345,1739295037760,-500.031,0.000109,2]
[352760347,1739295037769,-177.83672863,0.000109,2]
[352760349,1739295037779,-1368.70404092,0.000109,2]
[352760351,1739295037788,-2898.6902158,0.000109,2]
[352760353,1739295037798,-3131.44819672,0.00010933,2]
[352760355,1739295037808,-500.0,0.00010958,2]
[352760357,1739295037818,-525.68072251,0.00010958,2]
[352760359,1739295037829,-503.07180841,0.00010958,2]
[352760361,1739295037838,-500.0,0.00010958,2]
[352760363,1739295037848,-215.80310144,0.00010958,2]
[352760365,1739295037858,-502.14864093,0.00010958,2]
[352760367,1739295037867,-262.84386419,0.00010958,2]
[352760370,1739295037877,-500.0,0.00010958,2]
[352760373,1739295037887,-500.0,0.00010958,2]
[352760376,1739295037896,-500.0,0.00010958,2]
[352760379,1739295037907,-500.0,0.00010958,2]
[352760382,1739295037917,-56.3327791,0.00010958,2]
[352760385,1739295037929,-443.6672209,0.00010958,2]
[352760388,1739295037940,-500.0,0.00010958,2]
[352760390,1739295037949,-500.0,0.00010958,2]
[352760391,1739295037958,-500.0,0.00010958,2]
[352760394,1739295037968,-500.0,0.00010958,2]
[352760396,1739295037978,-500.0,0.00010958,2]
[352760398,1739295037988,-500.0,0.00010958,2]
[352760400,1739295037997,-500.0,0.00010958,2]
[352760401,1739295038011,-500.0,0.00010958,2]
[352760403,1739295038021,-500.0,0.00010958,2]
[352760405,1739295038031,-500.0,0.00010958,2]
[352760407,1739295038040,-500.0,0.00010958,2]
[352760409,1739295038050,-500.0,0.00010958,2]
[352760412,1739295038060,-536.92,0.00010958,2]
[352760413,1739295038072,-639.94,0.00010958,2]
[352760415,1739295038082,-500.0,0.00010958,2]
[352760417,1739295038091,-500.0,0.00010958,2]
[352760419,1739295038100,-500.0,0.00010958,2]
[352760421,1739295038110,-500.0,0.00010958,2]
[352760423,1739295038124,-500.0,0.00010958,2]
[352760425,1739295038135,-500.0,0.00010958,2]
[352760427,1739295038144,-500.0,0.00010958,2]
[352760429,1739295038154,-500.0,0.00010958,2]
[352760431,1739295038164,-500.0,0.00010958,2]
[352760433,1739295038173,-500.0,0.00010958,2]
[352760435,1739295038182,-500.0,0.00010958,2]
[352760437,1739295038191,-500.0,0.00010958,2]
[352760439,1739295038200,-500.0,0.00010958,2]
[352760441,1739295038210,-500.0,0.00010958,2]
[352760443,1739295038219,-500.0,0.00010958,2]
[352760445,1739295038228,-500.0,0.00010958,2]
[352760447,1739295038237,-500.0,0.00010958,2]
[352760449,1739295038247,-500.0,0.00010958,2]
[352760451,1739295038257,-546.5,0.00010958,2]
[352760453,1739295038266,-500.0,0.00010958,2]
[352760455,1739295038276,-500.0,0.00010958,2]
[352760457,1739295038285,-500.0,0.00010958,2]
[352760459,1739295038295,-500.0,0.00010958,2]
[352760461,1739295038305,-500.0,0.00010958,2]
[352760463,1739295038314,-500.0,0.00010958,2]
[352760464,1739295038323,-500.0,0.00010958,2]
[352760465,1739295038332,-500.0,0.00010958,2]
[352760467,1739295038342,-500.0,0.00010958,2]
[352760468,1739295038351,-500.0,0.00010958,2]
[352760469,1739295038361,-500.0,0.00010958,2]
[352760470,1739295038371,-228.0,0.00010958,2]
[352760471,1739295038380,-500.0,0.00010958,2]
[352760472,1739295038390,-500.0,0.00010958,2]
[352760473,1739295038399,-500.0,0.00010958,2]
[352760474,1739295038409,-500.0,0.00010958,2]
[352760475,1739295038418,-502.73977901,0.00010958,2]
[352760476,1739295038428,-500.0,0.00010958,2]
[352760477,1739295038438,-500.0,0.00010958,2]
[352760478,1739295038448,-500.0,0.00010958,2]
[352760479,1739295038457,-500.0,0.00010958,2]
[352760480,1739295038467,-500.0,0.00010958,2]
[352760481,1739295038477,-500.0,0.00010958,2]
[352760482,1739295038486,-500.0,0.00010958,2]
[352760483,1739295038496,-500.0,0.00010958,2]
[352760484,1739295038506,-500.0,0.00010958,2]
[352760485,1739295038515,-500.0,0.00010958,2]
[352760486,1739295038525,-500.0,0.00010958,2]
[352760487,1739295038534,-500.0,0.00010958,2]
[352760488,1739295038544,-500.0,0.00010958,2]
[352760489,1739295038553,-500.0,0.00010958,2]
[352760490,1739295038563,-500.0,0.00010958,2]
[352760491,1739295038572,-500.0,0.00010958,2]
[352760492,1739295038582,-500.0,0.00010958,2]
[352760493,1739295038592,-500.0,0.00010958,2]
[352760494,1739295038601,-500.0,0.00010958,2]
[352760495,1739295038611,-500.0,0.00010958,2]
[352760496,1739295038624,-500.0,0.00010958,2]
[352760497,1739295038637,-500.0,0.00010958,2]
[352760498,1739295038647,-500.0,0.00010958,2]
[352760499,1739295038656,-500.0,0.00010958,2]
[352760500,1739295038666,-500.0,0.00010958,2]
[352760501,1739295038675,-500.0,0.00010958,2]
[352760502,1739295038685,-500.0,0.00010958,2]
[352760503,1739295038695,-500.0,0.00010958,2]
[352760504,1739295038708,-500.0,0.00010958,2]
[352760505,1739295038717,-500.0,0.00010958,2]